bitfinex/quotes_BTCUSD_20240620
["timestamp","ask_amount","ask_price","bid_price","bid_amount"]
[1718857965855,0.87501896,65318.0,65317.0,0.0042]
[1718857966282,0.87601896,65318.0,65317.0,0.0042]
[1718857966661,0.87501896,65318.0,65317.0,0.0042]
[1718857968498,0.87502479,65318.0,65317.0,0.0042]
[1718857970364,0.93462479,65318.0,65317.0,0.0042]
[1718857973141,0.87502479,65318.0,65317.0,0.01762659]
[1718857973367,0.10953979,65318.0,65317.0,0.18552659]
[1718857973569,0.16263679,65318.0,65317.0,0.18552659]
[1718857973812,0.00953979,65318.0,65317.0,0.49118671]
[1718857974109,0.1,65324.0,65322.0,0.01342659]
[1718857974275,0.253083,65324.0,65323.0,0.01342659]
[1718857974491,0.11059701,65324.0,65323.0,0.01342659]
[1718857975494,0.17019701,65324.0,65323.0,0.01846659]
[1718857976246,0.17019701,65324.0,65323.0,0.02046659]
[1718857976483,0.17019701,65324.0,65323.0,0.02346659]
[1718857976881,0.32328001,65324.0,65323.0,0.02346659]
[1718857977798,0.26368001,65324.0,65323.0,0.02146659]
[1718857978002,0.26368001,65324.0,65323.0,0.02346659]
[1718857978987,0.56984601,65324.0,65323.0,0.01004]
[1718857979391,0.56984601,65324.0,65323.0,0.02346659]
[1718857979598,0.56984601,65324.0,65323.0,0.01004]
[1718857980159,0.87601201,65324.0,65323.0,0.01004]
[1718857980366,0.97371201,65324.0,65323.0,0.01004]
[1718857980627,1.27987801,65324.0,65323.0,0.01004]
[1718857980829,1.27987801,65324.0,65323.0,0.00704]
[1718857981034,1.27987801,65324.0,65323.0,0.00504]
[1718857981250,1.28566536,65324.0,65323.0,0.00604]
[1718857981509,1.27987801,65324.0,65323.0,0.00604]
[1718857981867,1.34852934,65324.0,65323.0,0.00504]
[1718857982071,1.33947801,65324.0,65323.0,0.00504]
[1718857982882,1.33947801,65324.0,65323.0,0.01846659]
[1718857982883,0.56984601,65324.0,65323.0,0.01846659]
[1718857983081,0.26368001,65324.0,65323.0,0.01846659]
[1718857983515,0.32428001,65324.0,65323.0,0.01846659]
[1718857983841,0.32428001,65324.0,65323.0,0.01342659]
[1718857984066,0.26368001,65324.0,65323.0,0.01342659]
[1718857984282,0.62944601,65324.0,65323.0,0.01342659]
[1718857984482,0.32328001,65324.0,65323.0,0.01542659]
[1718857984702,0.62944601,65324.0,65323.0,0.002]
[1718857984947,0.365766,65324.0,65323.0,0.002]
[1718857985185,0.153087,65322.0,65321.0,0.08852659]
[1718857985391,0.153087,65322.0,65321.0,0.24108771]
[1718857986969,0.253087,65322.0,65321.0,0.24108771]
[1718857987170,0.1,65322.0,65321.0,0.24108771]
[1718857987583,0.306157,65326.0,65325.0,0.01342659]
[1718857987785,0.459235,65326.0,65325.0,0.01342659]
[1718857988207,0.459235,65326.0,65325.0,0.01876659]
[1718857988408,0.518835,65326.0,65325.0,0.01876659]
[1718857990081,0.518835,65326.0,65325.0,0.02176659]
[1718857991068,0.459235,65326.0,65325.0,0.02176659]
[1718857991266,0.518835,65326.0,65325.0,0.02176659]
[1718857991526,0.459235,65326.0,65325.0,0.02176659]
[1718857991755,0.518835,65326.0,65325.0,0.02176659]
[1718857992132,0.518835,65326.0,65325.0,0.02376659]
[1718857992708,0.0596,65326.0,65325.0,0.02376659]
[1718857992932,0.212678,65326.0,65325.0,0.02376659]
[1718857993113,0.27804062,65328.0,65327.0,0.01342659]
[1718857993315,0.33764062,65328.0,65327.0,0.01342659]
[1718857993694,0.27642565,65328.0,65327.0,0.01342659]
[1718857993897,0.33602565,65328.0,65327.0,0.01342659]
[1718857994495,0.33602565,65328.0,65327.0,0.01442659]
[1718857994899,0.35100517,65328.0,65327.0,0.01442659]
[1718857995317,0.35100517,65328.0,65327.0,0.02000659]
[1718857995524,0.13833017,65328.0,65327.0,0.02000659]
[1718857995723,0.09793017,65328.0,65327.0,0.02000659]
[1718857995954,0.19793017,65328.0,65327.0,0.02000659]
[1718857996418,0.35100317,65328.0,65327.0,0.02000659]
[1718857997120,0.34118166,65328.0,65327.0,0.02000659]
[1718857997824,0.01497952,65328.0,65327.0,0.18620659]
[1718857997960,0.01497952,65328.0,65327.0,0.19620659]
[1718857998164,0.01497952,65328.0,65327.0,0.18620659]
[1718857998363,0.01901304,65330.0,65329.0,0.01342659]
[1718857998616,0.01901156,65330.0,65329.0,0.01342659]
[1718858000016,0.01901156,65330.0,65329.0,0.81050071]
[1718858000221,0.02001156,65330.0,65329.0,0.81050071]
[1718858000450,0.02001156,65330.0,65329.0,1.11664271]
[1718858000647,0.02001156,65330.0,65329.0,1.12252271]
[1718858000825,0.01901156,65330.0,65329.0,1.12252271]
[1718858001245,0.02001156,65330.0,65329.0,1.12252271]
[1718858001651,0.02001156,65330.0,65329.0,1.13064271]
[1718858001850,0.01901156,65330.0,65329.0,1.13064271]
[1718858002994,0.01901156,65330.0,65329.0,1.11664271]
[1718858003156,0.01901156,65330.0,65329.0,1.13064271]
[1718858003355,0.00861,65331.0,65330.0,0.48263359]
[1718858003578,0.00861,65331.0,65330.0,0.80569471]
[1718858003756,0.00861,65331.0,65330.0,1.11183271]
[1718858005430,0.00861,65331.0,65330.0,1.13983271]
[1718858006922,0.00861,65331.0,65330.0,1.14589271]
[1718858007118,0.00861,65331.0,65330.0,1.13189271]
[1718858007520,0.00861,65331.0,65330.0,1.14589271]
[1718858008053,0.00861,65331.0,65330.0,1.11789271]
[1718858008259,0.00861,65331.0,65330.0,1.13189271]
[1718858008463,0.00861,65331.0,65330.0,1.14589271]
[1718858008696,0.00861,65331.0,65330.0,1.13189271]
[1718858009055,0.00861,65331.0,65330.0,1.14589271]
[1718858009672,0.02398331,65331.0,65330.0,1.14589271]
[1718858009835,0.00861,65331.0,65330.0,1.14589271]
[1718858011048,0.00861,65331.0,65330.0,1.13189271]
[1718858011578,0.00861,65331.0,65330.0,1.14589271]
[1718858011758,0.0247281,65331.0,65330.0,1.13189271]
[1718858011965,0.00861,65331.0,65330.0,1.13189271]
[1718858012333,0.02542022,65331.0,65330.0,1.14589271]
[1718858012452,0.00861,65331.0,65330.0,1.14589271]
[1718858013254,0.00861,65331.0,65330.0,0.81575471]
[1718858013255,0.0255605,65331.0,65330.0,0.81575471]
[1718858013427,0.0255605,65331.0,65330.0,0.80175471]
[1718858013627,0.0255605,65331.0,65330.0,0.81575471]
[1718858014796,0.0255605,65331.0,65330.0,0.82975471]
[1718858015641,0.0255605,65331.0,65330.0,1.14589271]
[1718858015839,0.0255605,65331.0,65330.0,0.82975471]
[1718858016624,0.0255605,65331.0,65330.0,0.37054771]
[1718858016828,0.0255605,65331.0,65330.0,0.04748659]
[1718858018016,0.0255605,65331.0,65330.0,0.03348659]
[1718858018303,0.0255605,65331.0,65330.0,0.02442659]
[1718858018607,0.0255605,65331.0,65330.0,0.03742659]
[1718858018806,0.0255605,65331.0,65330.0,0.01342659]
[1718858019007,0.0255605,65331.0,65330.0,0.02642659]
[1718858019233,0.0255605,65331.0,65330.0,0.03942659]
[1718858021429,0.0255605,65331.0,65330.0,0.82559471]
[1718858021635,0.0255605,65331.0,65330.0,0.83559471]
[1718858022069,0.00861,65331.0,65330.0,1.59987071]
[1718858022243,0.00861,65331.0,65330.0,1.59293071]
[1718858022428,0.00861,65331.0,65330.0,1.47793071]
[1718858022629,0.00861,65331.0,65330.0,1.49193071]
[1718858022855,0.00861,65331.0,65330.0,1.50493071]
[1718858023081,0.00861,65331.0,65330.0,1.47793071]
[1718858023281,0.00861,65331.0,65330.0,1.47187071]
[1718858023492,0.00861,65331.0,65330.0,1.48587071]
[1718858023713,0.00861,65331.0,65330.0,1.58787071]
[1718858023912,0.00861,65331.0,65330.0,1.48587071]
[1718858024091,0.00861,65331.0,65330.0,1.58787071]
[1718858024807,0.00861,65331.0,65330.0,1.60187071]
[1718858025747,0.00861,65331.0,65330.0,1.49987071]
[1718858025950,0.00861,65331.0,65330.0,1.60187071]
[1718858027970,0.00861,65331.0,65330.0,1.66147071]
[1718858029731,0.00861,65331.0,65330.0,2.01760871]
[1718858031731,0.00861,65332.0,65331.0,0.22542659]
[1718858031990,0.00861,65332.0,65331.0,2.16816743]
[1718858032327,0.00861,65332.0,65331.0,2.10856743]
[1718858032587,0.00861,65332.0,65331.0,2.16816743]
[1718858033071,0.00861,65332.0,65331.0,2.19616743]
[1718858033856,0.00861,65332.0,65331.0,2.16816743]
[1718858035500,0.00861,65332.0,65331.0,2.18216743]
[1718858036055,0.00861,65332.0,65331.0,1.94428571]
[1718858036434,0.00861,65332.0,65331.0,2.11988571]
[1718858036999,0.00861,65332.0,65331.0,2.09188571]
[1718858037211,0.00861,65332.0,65331.0,2.10588571]
[1718858037588,0.00861,65332.0,65331.0,2.01788571]
[1718858037910,0.00861,65332.0,65331.0,1.50215271]
[1718858038151,0.00861,65332.0,65331.0,1.61175271]
[1718858038353,0.00861,65332.0,65331.0,1.59775271]
[1718858038728,0.00861,65332.0,65331.0,1.61175271]
[1718858038911,0.00861,65332.0,65331.0,1.59775271]
[1718858039109,0.00861,65332.0,65331.0,1.53775271]
[1718858039368,0.00861,65332.0,65331.0,1.50215271]
[1718858039873,0.00861,65332.0,65331.0,1.48815271]
[1718858040677,0.00861,65332.0,65331.0,1.19601971]
[1718858041016,0.00861,65332.0,65331.0,1.17201971]
[1718858041218,0.00861,65332.0,65331.0,1.18201971]
[1718858041632,0.00861,65332.0,65331.0,1.19601971]
[1718858042046,0.00861,65332.0,65331.0,1.18201971]
[1718858042253,0.00861,65332.0,65331.0,1.16801971]
[1718858042425,0.00861,65332.0,65331.0,1.18201971]
[1718858042638,0.00861,65332.0,65331.0,1.19601971]
[1718858043260,0.00861,65332.0,65331.0,0.18056112]
[1718858043465,0.02794602,65332.0,65331.0,0.19398771]
[1718858043884,0.02794602,65332.0,65331.0,0.65318671]
[1718858044100,0.02794602,65332.0,65331.0,0.34705371]
[1718858044328,0.02794602,65332.0,65331.0,0.65318671]
[1718858044490,0.02794602,65332.0,65331.0,0.96931971]
[1718858044679,0.02794602,65332.0,65331.0,1.19371971]
[1718858045082,0.02794602,65332.0,65331.0,1.20989971]
[1718858045288,0.02794602,65332.0,65331.0,1.18589971]
[1718858045633,0.02794602,65332.0,65331.0,1.21089971]
[1718858046062,0.00861,65332.0,65331.0,1.21089971]
[1718858046240,0.00861,65332.0,65331.0,1.54985271]
[1718858046595,0.00861,65332.0,65331.0,1.56385271]
[1718858047014,0.00861,65332.0,65331.0,1.54985271]
[1718858047661,0.00861,65332.0,65331.0,1.53585271]
[1718858047874,0.00861,65332.0,65331.0,1.63785271]
[1718858048025,0.2965208,65346.0,65345.0,0.01342659]
[1718858048026,0.27836265,65346.0,65345.0,0.01342659]
[1718858048228,0.23157639,65346.0,65345.0,0.01342659]
[1718858048447,0.09670254,65346.0,65345.0,0.01342659]
[1718858048653,0.24973354,65346.0,65345.0,0.01342659]
[1718858050262,0.24973354,65346.0,65345.0,0.01942659]
[1718858050800,0.09670254,65346.0,65345.0,0.01942659]
[1718858051001,0.09670254,65346.0,65345.0,0.17745959]
[1718858051212,0.02200254,65346.0,65345.0,0.02442659]
[1718858051418,0.00861,65349.0,65345.0,0.02442659]
[1718858051419,0.00861,65349.0,65348.0,0.01342659]
[1718858051628,0.03044516,65349.0,65348.0,0.01342659]
[1718858052484,0.03044516,65349.0,65348.0,0.02200659]
[1718858052912,0.03044516,65349.0,65348.0,0.02400659]
[1718858054266,0.03044516,65349.0,65348.0,0.02500659]
[1718858060984,0.07631727,65349.0,65348.0,0.01158]
[1718858061187,0.18346916,65349.0,65348.0,0.02500659]
[1718858062360,0.25225796,65349.0,65348.0,0.02500659]
[1718858062903,0.18346916,65349.0,65348.0,0.02500659]
[1718858063105,0.22935234,65349.0,65348.0,0.02500659]
[1718858063338,0.18346916,65349.0,65348.0,0.02500659]
[1718858063763,0.18346916,65349.0,65348.0,0.01642659]
[1718858064610,0.03044516,65349.0,65348.0,0.01642659]
[1718858065033,0.02614852,65349.0,65348.0,0.01642659]
[1718858065210,0.09493732,65349.0,65348.0,0.01642659]
[1718858067324,0.02614852,65349.0,65348.0,0.01642659]
[1718858073371,0.02614852,65349.0,65348.0,0.16945259]
[1718858075770,0.10094852,65349.0,65348.0,0.16945259]
[1718858076009,0.02614852,65349.0,65348.0,0.16945259]
[1718858076599,0.02614852,65349.0,65348.0,0.01642659]
[1718858077155,0.02614852,65349.0,65348.0,0.02500659]
[1718858078532,0.06354852,65349.0,65348.0,0.02500659]
[1718858079219,0.02614852,65349.0,65348.0,0.02500659]
[1718858083117,0.00861,65349.0,65348.0,0.02500659]
[1718858083338,0.026804,65349.0,65348.0,0.02500659]
[1718858084123,0.02673088,65349.0,65348.0,0.02500659]
[1718858085208,0.00861,65349.0,65348.0,0.02500659]
[1718858085458,0.02673821,65349.0,65348.0,0.02500659]
[1718858089415,0.24488328,65350.0,65348.0,0.02500659]
[1718858089416,0.01296538,65351.0,65350.0,0.01342659]
[1718858089635,0.16598438,65351.0,65350.0,0.01342659]
[1718858091300,0.26784435,65351.0,65350.0,0.01342659]
[1718858091886,0.26784435,65351.0,65350.0,0.02230659]
[1718858092579,0.26784435,65351.0,65350.0,0.02730659]
[1718858092980,0.26784435,65351.0,65350.0,0.02230659]
[1718858093253,0.26784435,65351.0,65350.0,0.02830659]
[1718858093612,0.26784435,65351.0,65350.0,0.03330659]
[1718858094220,0.153019,65351.0,65350.0,0.03330659]
[1718858095486,0.153879,65351.0,65350.0,0.03330659]
[1718858099280,0.16927368,65351.0,65350.0,0.03330659]
[1718858102849,0.01625468,65351.0,65350.0,0.18632859]
[1718858103539,0.01625468,65351.0,65350.0,0.35962859]
[1718858107256,0.01625468,65351.0,65350.0,0.81823371]
[1718858107438,0.01625468,65351.0,65350.0,1.12427771]
[1718858108260,0.01625468,65351.0,65350.0,1.13427771]
[1718858109592,0.01625468,65351.0,65350.0,1.12539771]
[1718858110286,0.13120626,65351.0,65350.0,1.12539771]
[1718858110527,0.01625468,65351.0,65350.0,1.12539771]
[1718858111009,0.01833657,65351.0,65350.0,1.12539771]
[1718858112430,0.00086,65351.0,65350.0,1.12539771]
[1718858112665,0.0181387,65351.0,65350.0,1.12539771]
[1718858113430,0.06409985,65351.0,65350.0,1.12539771]
[1718858114272,0.0181387,65351.0,65350.0,1.12539771]
[1718858114618,0.01784031,65351.0,65350.0,1.12539771]
[1718858115163,0.01784031,65351.0,65350.0,1.11539771]
[1718858115370,0.01784031,65351.0,65350.0,1.12539771]
[1718858117584,0.01784031,65351.0,65350.0,0.81935371]
[1718858117807,0.01784031,65351.0,65350.0,1.12539771]
[1718858118612,0.05822814,65358.0,65354.0,0.153011]
[1718858118812,0.21123114,65358.0,65357.0,0.01342659]
[1718858119789,0.21123114,65358.0,65357.0,0.02332659]
[1718858119985,0.21423114,65358.0,65357.0,0.0099]
[1718858120188,0.52023714,65358.0,65357.0,0.02332659]
[1718858120429,0.51723714,65358.0,65357.0,0.02332659]
[1718858121424,0.53654779,65358.0,65357.0,0.0099]
[1718858121650,0.53654779,65358.0,65357.0,0.02332659]
[1718858122023,0.53954779,65358.0,65357.0,0.02332659]
[1718858122438,0.65447495,65358.0,65357.0,0.02332659]
[1718858122649,0.65147495,65358.0,65357.0,0.02332659]
[1718858122873,0.53654779,65358.0,65357.0,0.02532659]
[1718858123374,0.53654779,65358.0,65357.0,0.02632659]
[1718858124528,0.84255379,65358.0,65357.0,0.0129]
[1718858126605,0.84834114,65358.0,65357.0,0.0129]
[1718858126810,1.59635314,65358.0,65357.0,0.0129]
[1718858127212,1.73413409,65358.0,65357.0,0.0129]
[1718858127885,1.73413409,65358.0,65357.0,0.0119]
[1718858128531,1.73413409,65358.0,65357.0,0.0099]
[1718858128700,1.73413409,65358.0,65346.0,0.48957259]
[1718858128701,0.089,65350.0,65346.0,0.000946]
[1718858128905,1.27259035,65347.0,65346.0,0.000946]
[1718858129156,1.21299035,65347.0,65346.0,0.000946]
[1718858129375,2.41350913,65347.0,65346.0,0.000946]
[1718858129705,2.01405313,65347.0,65346.0,0.000946]
[1718858129892,2.06330978,65347.0,65346.0,0.000946]
[1718858130887,2.06330978,65347.0,65346.0,0.003946]
[1718858131326,2.06330978,65347.0,65346.0,0.000946]
[1718858131548,2.06486978,65347.0,65346.0,0.001946]
[1718858131874,2.07086978,65347.0,65346.0,0.002946]
[1718858132888,1.51907035,65346.0,65345.0,2.910976]
[1718858133091,1.61907035,65346.0,65345.0,2.910976]
[1718858133293,1.67976702,65346.0,65345.0,2.910976]
[1718858133442,5.07635614,65346.0,65345.0,2.910976]
[1718858133648,5.09935614,65346.0,65345.0,2.910976]
[1718858134091,4.66709814,65346.0,65345.0,2.910976]
[1718858134293,4.12972014,65346.0,65345.0,2.910976]
[1718858134464,3.98688014,65346.0,65345.0,2.910976]
[1718858134874,3.97173814,65346.0,65345.0,2.910976]
[1718858135282,3.64479813,65346.0,65345.0,2.910976]
[1718858135495,1.74331967,65346.0,65345.0,2.911976]
[1718858135702,1.6950951,65346.0,65345.0,2.911976]
[1718858135902,1.8425231,65346.0,65345.0,2.911976]
[1718858136416,1.90274767,65346.0,65345.0,2.912976]
[1718858136990,1.90853502,65346.0,65345.0,2.912976]
[1718858137670,1.90274767,65346.0,65345.0,2.912976]
[1718858138213,2.01725652,65346.0,65345.0,2.912976]
[1718858138637,1.90274767,65346.0,65345.0,2.912976]
[1718858139043,2.01725652,65346.0,65345.0,2.912976]
[1718858139247,1.90274767,65346.0,65345.0,2.912976]
[1718858143196,2.01725652,65346.0,65345.0,2.912976]
[1718858143399,1.90274767,65346.0,65345.0,2.912976]
[1718858144025,1.59668467,65346.0,65345.0,2.912976]
[1718858144202,1.6097971,65346.0,65345.0,2.912976]
[1718858145006,1.4141971,65346.0,65345.0,2.912976]
[1718858145205,1.35657466,65346.0,65345.0,2.912976]
[1718858145408,1.27850666,65346.0,65345.0,2.912976]
[1718858145607,0.5933061,65346.0,65345.0,3.00880259]
[1718858145815,0.5529061,65346.0,65345.0,3.10620259]
[1718858145983,0.8589691,65346.0,65345.0,3.10620259]
[1718858146781,0.8469691,65346.0,65345.0,3.10520259]
[1718858147644,0.8389691,65346.0,65345.0,3.10420259]
[1718858148178,0.8489691,65346.0,65345.0,3.091776]
[1718858148359,0.4833061,65346.0,65345.0,3.10520259]
[1718858148501,0.5429061,65346.0,65345.0,3.10520259]
[1718858148703,0.8549691,65346.0,65345.0,3.10420259]
[1718858149071,0.8449691,65346.0,65345.0,3.10420259]
[1718858149276,0.8499691,65346.0,65345.0,3.10420259]
[1718858154210,0.9499691,65346.0,65345.0,3.10420259]
[1718858156657,0.95216407,65346.0,65345.0,3.10420259]
[1718858162038,0.28043807,65346.0,65345.0,3.10420259]
[1718858162242,0.64610107,65346.0,65345.0,3.10420259]
[1718858162440,0.64696107,65346.0,65345.0,3.10420259]
[1718858163655,0.64522107,65346.0,65345.0,3.10420259]
[1718858164052,0.64522107,65346.0,65345.0,3.090776]
[1718858164257,0.64522107,65346.0,65345.0,3.10420259]
[1718858165037,0.630554,65346.0,65345.0,3.10420259]
[1718858165279,0.64671905,65346.0,65345.0,3.10420259]
[1718858165584,0.64845905,65346.0,65345.0,3.10420259]
[1718858165822,0.58885905,65346.0,65345.0,3.10420259]
[1718858166008,0.64845905,65346.0,65345.0,3.10420259]
[1718858167253,0.71712836,65346.0,65345.0,3.10420259]
[1718858167405,0.64845905,65346.0,65345.0,3.10420259]
[1718858167998,0.632294,65346.0,65345.0,3.10420259]
[1718858168397,0.95613014,65346.0,65345.0,3.10420259]
[1718858169273,1.02488384,65346.0,65345.0,3.10420259]
[1718858169851,0.65006714,65346.0,65345.0,3.10420259]
[1718858170059,0.7417899,65346.0,65345.0,3.10420259]
[1718858170265,0.65006714,65346.0,65345.0,3.10420259]
[1718858170507,0.74180603,65346.0,65345.0,3.10420259]
[1718858171470,0.74183222,65346.0,65345.0,3.10420259]
[1718858171673,0.65006714,65346.0,65345.0,3.10420259]
[1718858171879,1.04789523,65346.0,65345.0,3.090776]
[1718858172155,1.04789523,65346.0,65345.0,3.10420259]
[1718858172357,1.26219314,65346.0,65345.0,2.910976]
[1718858172503,1.39529314,65346.0,65345.0,2.910976]
[1718858173509,2.31618148,65346.0,65345.0,2.910976]
[1718858173692,2.21389968,65346.0,65345.0,2.910976]
[1718858173896,2.00620334,65346.0,65345.0,2.910976]
[1718858174099,1.88834334,65346.0,65345.0,2.910976]
[1718858175525,1.44855734,65346.0,65345.0,2.910976]
[1718858175782,1.4870472,65346.0,65345.0,2.910976]
[1718858176204,1.34929314,65346.0,65345.0,2.910976]
[1718858176405,1.20259314,65346.0,65345.0,2.92440259]
[1718858176606,1.26219314,65346.0,65345.0,3.089276]
[1718858177030,1.20259314,65346.0,65345.0,3.10270259]
[1718858177485,1.26219314,65346.0,65345.0,3.10270259]
[1718858177716,1.3999472,65346.0,65345.0,3.10270259]
[1718858177848,1.20259314,65346.0,65345.0,3.10270259]
[1718858178054,1.26219314,65346.0,65345.0,3.10270259]
[1718858178700,0.03137314,65346.0,65345.0,3.25526371]
[1718858179612,0.02537314,65346.0,65345.0,3.25526371]
[1718858180401,0.09424959,65346.0,65345.0,3.25526371]
[1718858180699,0.08924959,65346.0,65345.0,3.25526371]
[1718858180904,0.08924959,65346.0,65345.0,3.25626371]
[1718858182362,0.02037314,65346.0,65345.0,3.25626371]
[1718858182555,0.17340414,65346.0,65345.0,3.25626371]
[1718858182896,0.24228301,65346.0,65345.0,3.25626371]
[1718858185029,0.24228301,65346.0,65345.0,3.07796371]
[1718858185030,0.85440901,65346.0,65345.0,3.07796371]
[1718858185374,0.85440901,65346.0,65345.0,2.92540259]
[1718858185375,0.90033211,65346.0,65345.0,2.92540259]
[1718858185551,1.09159314,65346.0,65345.0,2.92540259]
[1718858185754,1.09159314,65346.0,65345.0,2.911976]
[1718858188589,1.09159314,65346.0,65345.0,2.92540259]
[1718858190260,1.09159314,65346.0,65345.0,2.911976]
[1718858190398,1.22938862,65346.0,65345.0,2.911976]
[1718858190607,1.17929314,65346.0,65345.0,2.911976]
[1718858190984,1.15119314,65346.0,65345.0,2.911976]
[1718858191291,1.15119314,65346.0,65345.0,2.92540259]
[1718858192901,1.28898862,65346.0,65345.0,2.92540259]
[1718858193048,1.15119314,65346.0,65345.0,2.92540259]
[1718858193443,1.15119314,65346.0,65345.0,2.911976]
[1718858193872,1.27989314,65346.0,65345.0,2.911976]
[1718858194317,1.23889314,65346.0,65345.0,2.911976]
[1718858194681,1.15119314,65346.0,65345.0,2.911976]
[1718858195279,1.15119314,65346.0,65345.0,2.92540259]
[1718858195688,1.15119314,65346.0,65345.0,2.911976]
[1718858196534,1.15119314,65346.0,65345.0,2.92540259]
[1718858197662,1.22940906,65346.0,65345.0,2.92540259]
[1718858197822,1.28900906,65346.0,65345.0,2.92540259]
[1718858198225,1.15119314,65346.0,65345.0,2.92540259]
[1718858199231,1.15119314,65346.0,65345.0,2.92540259]
[1718858199526,1.14814203,65346.0,65345.0,2.92540259]
[1718858200387,1.14814203,65346.0,65345.0,2.911976]
[1718858200530,1.28595673,65346.0,65345.0,2.911976]
[1718858200727,1.22635673,65346.0,65345.0,2.911976]
[1718858200934,1.14814203,65346.0,65345.0,2.911976]
[1718858202206,1.28595673,65346.0,65345.0,2.911976]
[1718858203393,1.14814203,65346.0,65345.0,2.911976]
[1718858204501,1.28595557,65346.0,65345.0,2.911976]
[1718858205536,1.37365557,65346.0,65345.0,2.911976]
[1718858206652,1.28595557,65346.0,65345.0,2.911976]
[1718858206949,1.22635557,65346.0,65345.0,2.911976]
[1718858207128,1.08854203,65346.0,65345.0,2.911976]
[1718858207331,1.14814203,65346.0,65345.0,2.911976]
[1718858208799,1.08854203,65346.0,65345.0,3.11030259]
[1718858209181,1.14814203,65346.0,65345.0,3.11030259]
[1718858209529,1.45420503,65346.0,65345.0,2.911976]
[1718858209649,2.88160838,65346.0,65345.0,2.911976]
[1718858209856,2.93197012,65346.0,65345.0,2.911976]
[1718858210687,2.93197012,65346.0,65345.0,2.910976]
[1718858211100,2.95397012,65346.0,65345.0,2.912976]
[1718858211664,3.20653124,65346.0,65345.0,2.8986314]
[1718858211908,2.64254124,65346.0,65345.0,2.4563314]
[1718858212121,2.65855353,65346.0,65345.0,2.44553998]
[1718858212264,2.65855353,65346.0,65345.0,0.92063998]
[1718858212265,7.70720767,65346.0,65345.0,0.92063998]
[1718858212480,7.96880767,65346.0,65345.0,0.90963998]
[1718858212698,8.19491192,65346.0,65345.0,0.90963998]
[1718858213105,8.2866757,65346.0,65345.0,0.82803298]
[1718858213312,8.2866757,65346.0,65345.0,0.81945598]
[1718858213313,8.05057145,65346.0,65345.0,0.81945598]
[1718858213511,8.05057145,65346.0,65345.0,0.77245598]
[1718858213764,8.2866757,65346.0,65345.0,0.77345598]
[1718858213969,8.2746757,65346.0,65345.0,0.77245598]
[1718858214166,8.12612156,65346.0,65345.0,0.71845598]
[1718858214370,7.90001731,65346.0,65345.0,0.71945598]
[1718858214567,7.91001731,65346.0,65345.0,0.70426598]
[1718858214769,7.89601731,65346.0,65345.0,0.70426598]
[1718858215007,7.91001731,65346.0,65345.0,0.26196598]
[1718858215188,7.91001731,65346.0,65328.0,0.000946]
[1718858215189,1.38342635,65329.0,65328.0,0.000946]
[1718858215364,1.66552635,65329.0,65328.0,0.000946]
[1718858215572,1.81780699,65329.0,65328.0,0.000946]
[1718858215910,1.91665277,65329.0,65328.0,0.000946]
[1718858216239,1.75875277,65329.0,65328.0,0.000946]
[1718858216354,1.70839103,65329.0,65328.0,0.000946]
[1718858217208,1.71417838,65329.0,65328.0,0.000946]
[1718858217607,1.73231838,65329.0,65328.0,0.000946]
[1718858218250,1.74631838,65329.0,65328.0,0.001946]
[1718858219385,1.85505295,65329.0,65328.0,0.001946]
[1718858219596,1.91120204,65329.0,65328.0,0.001946]
[1718858219795,1.90541469,65329.0,65328.0,0.001946]
[1718858220315,1.91120204,65329.0,65328.0,0.001946]
[1718858220524,1.84581469,65329.0,65328.0,0.001946]
[1718858220738,1.90541469,65329.0,65328.0,0.001946]
[1718858221185,1.79089277,65329.0,65328.0,0.001946]
[1718858221608,1.88248938,65329.0,65328.0,0.001946]
[1718858221803,1.79089277,65329.0,65328.0,0.001946]
[1718858221983,1.80215123,65329.0,65328.0,0.001946]
[1718858222181,1.89374784,65329.0,65328.0,0.001946]
[1718858222410,1.52800584,65329.0,65328.0,0.001946]
[1718858222629,1.3212141,65329.0,65328.0,0.001946]
[1718858222790,1.3808141,65329.0,65328.0,0.001946]
[1718858222995,1.28921749,65329.0,65328.0,0.001946]
[1718858223200,1.35789961,65329.0,65328.0,0.001946]
[1718858223937,1.49504961,65329.0,65328.0,0.001946]
[1718858224293,1.42636749,65329.0,65328.0,0.001946]
[1718858224546,1.41236749,65329.0,65328.0,0.001946]
[1718858224845,1.40336749,65329.0,65328.0,0.000946]
[1718858225251,1.40936749,65329.0,65328.0,0.000946]
[1718858225443,1.47804056,65329.0,65328.0,0.000946]
[1718858225622,1.34089056,65329.0,65328.0,0.000946]
[1718858225823,1.34455803,65329.0,65328.0,0.000946]
[1718858226062,1.27588496,65329.0,65328.0,0.000946]
[1718858227141,1.21628496,65329.0,65328.0,0.20807259]
[1718858227617,0.91014296,65329.0,65328.0,0.20807259]
[1718858227810,0.50400096,65329.0,65328.0,0.20807259]
[1718858233437,0.19785896,65329.0,65328.0,0.20807259]
[1718858234443,0.19285896,65329.0,65328.0,0.20807259]
[1718858234880,0.18685896,65329.0,65328.0,0.21207259]
[1718858235443,0.0235295,65329.0,65328.0,0.38163371]
[1718858235647,0.0235295,65329.0,65328.0,0.84085371]
[1718858236058,0.0235295,65329.0,65328.0,0.53470671]
[1718858236377,0.0235295,65329.0,65328.0,0.83685371]
[1718858237179,0.0245295,65329.0,65328.0,0.84285371]
[1718858237462,0.0245295,65329.0,65328.0,0.43323371]
[1718858237687,0.0245295,65329.0,65328.0,0.22107259]
[1718858237688,0.7898845,65329.0,65328.0,0.22107259]
[1718858238903,0.7898845,65329.0,65328.0,0.207646]
[1718858239372,0.7898845,65329.0,65328.0,0.013946]
[1718858239373,1.0960265,65329.0,65328.0,0.013946]
[1718858239576,1.3821105,65329.0,65328.0,0.013946]
[1718858239782,1.0960265,65329.0,65328.0,0.013946]
[1718858239904,1.2729965,65329.0,65328.0,0.013946]
[1718858240108,1.0960265,65329.0,65328.0,0.013946]
[1718858240328,1.36169266,65329.0,65328.0,0.013946]
[1718858240532,1.2919965,65329.0,65328.0,0.007946]
[1718858240953,1.2782675,65329.0,65328.0,0.007946]
[1718858241494,1.2582675,65329.0,65328.0,0.007946]
[1718858241859,1.2572675,65329.0,65328.0,0.000946]
[1718858242062,1.2582675,65329.0,65328.0,0.000946]
[1718858242464,1.0950265,65329.0,65328.0,0.000946]
[1718858243444,1.0950265,65329.0,65328.0,0.24567259]
[1718858243445,0.4827425,65329.0,65328.0,0.24567259]
[1718858245392,0.78921659,65329.0,65328.0,0.24567259]
[1718858246856,0.78821659,65329.0,65328.0,0.24567259]
[1718858247384,0.78821659,65329.0,65328.0,0.24667259]
[1718858247505,0.78821659,65329.0,65328.0,0.24767259]
[1718858248545,0.78821659,65329.0,65328.0,0.24667259]
[1718858248964,0.78821659,65329.0,65328.0,0.24767259]